bitfinex/quotes_ETHUSD_20240731
["timestamp","ask_amount","ask_price","bid_price","bid_amount"]
[1722417435117,3.01278,3319.2,3318.7,3.22452]
[1722417435292,3.01278,3319.2,3318.7,2.2827]
[1722417436834,6.02531,3319.4,3318.7,2.2827]
[1722417437044,3.01283,3319.2,3318.7,2.2827]
[1722417437540,3.01268,3319.3,3318.7,2.2827]
[1722417438113,3.01261,3319.4,3318.7,2.2827]
[1722417438432,6.02527,3319.4,3318.7,2.2827]
[1722417438595,3.01279,3319.2,3318.7,2.2827]
[1722417441717,3.01261,3319.4,3318.7,2.2827]
[1722417442326,6.02528,3319.4,3318.7,2.2827]
[1722417442541,3.0127,3319.3,3318.7,2.2827]
[1722417443315,3.01279,3319.2,3318.7,2.2827]
[1722417445146,6.02565,3319.2,3318.7,2.2827]
[1722417445346,3.01279,3319.2,3318.7,2.2827]
[1722417446345,6.02563,3319.2,3318.7,2.2827]
[1722417446852,3.01288,3319.1,3318.7,2.2827]
[1722417448560,3.01288,3319.1,3318.4,2.3395]
[1722417448711,3.01288,3319.1,3318.2,7.47]
[1722417448712,3.01329,3318.7,3318.2,7.47]
[1722417448917,3.0135,3318.4,3318.1,2.4844487]
[1722417450451,3.01336,3318.6,3318.1,2.4844487]
[1722417450966,3.01342,3318.5,3318.1,2.4844487]
[1722417451454,3.01309,3318.9,3318.1,2.4844487]
[1722417451617,3.0,3318.8,3318.3,2.3552]
[1722417451819,3.0,3318.8,3318.6,1.109]
[1722417452017,6.01298,3319.0,3318.6,1.109]
[1722417452267,3.0,3319.0,3318.6,1.109]
[1722417452924,3.01278,3319.2,3318.6,1.109]
[1722417452925,3.0,3319.1,3318.6,1.109]
[1722417453272,3.0,3319.1,3318.5,0.06026161]
[1722417453620,3.0,3319.1,3318.6,2.363]
[1722417453826,3.01261,3319.4,3318.6,5.43656895]
[1722417453827,3.0,3319.3,3318.6,5.43656895]
[1722417454135,3.0,3319.3,3318.6,2.42325895]
[1722417454576,3.01278,3319.2,3318.6,2.42325895]
[1722417455398,3.0,3319.3,3318.6,2.42325895]
[1722417455664,6.01269,3319.3,3318.6,2.42325895]
[1722417456279,6.01269,3319.3,3318.6,5.43656895]
[1722417456478,6.01269,3319.3,3318.6,6.36598506]
[1722417456765,6.01269,3319.3,3318.6,5.43656895]
[1722417458071,6.01269,3319.3,3318.6,2.42325895]
[1722417458268,3.01279,3319.2,3318.6,2.42325895]
[1722417458569,3.0,3319.3,3318.6,5.43650895]
[1722417458797,3.0,3319.3,3318.6,6.28149185]
[1722417460374,3.01278,3319.2,3318.6,2.363]
[1722417460720,3.0131,3318.9,3318.2,2.4529]
[1722417461271,3.01313,3318.8,3318.2,2.4529]
[1722417462120,3.01327,3318.7,3318.2,2.4529]
[1722417462502,3.01312,3318.9,3318.2,2.4529]
[1722417462704,3.013,3319.0,3318.2,2.4529]
[1722417462941,3.01314,3318.8,3318.2,2.4529]
[1722417463798,3.013,3319.0,3318.2,2.4529]
[1722417463997,3.01307,3318.9,3318.2,2.51316751]
[1722417464198,3.01307,3318.9,3318.2,3.38173913]
[1722417464443,3.01307,3318.9,3318.2,6.39540913]
[1722417464926,6.02568,3319.2,3318.4,3.01349]
[1722417465134,3.01282,3319.2,3318.4,3.01349]
[1722417465299,3.01296,3319.0,3318.3,0.06026605]
[1722417465608,3.0,3319.3,3318.8,2.3309]
[1722417465830,3.01207,3320.0,3319.1,2.405]
[1722417465831,3.01227,3319.8,3319.1,2.405]
[1722417466139,3.01224,3319.8,3319.1,5.47806059]
[1722417466906,3.01224,3319.8,3319.1,2.405]
[1722417467149,3.0,3319.7,3319.1,2.405]
[1722417468611,3.0,3319.7,3319.1,2.46525064]
[1722417468838,3.0,3319.7,3319.1,6.04317864]
[1722417469042,3.01205,3320.0,3319.1,5.982928]
[1722417469043,3.0,3319.9,3319.1,5.982928]
[1722417469399,3.0,3319.9,3319.2,3.67130217]
[1722417469612,3.0,3319.9,3319.3,0.06024805]
[1722417469817,3.0,3319.9,3319.2,3.67130085]
[1722417470368,3.0,3319.9,3319.3,3.07287787]
[1722417470567,3.0,3320.1,3319.4,5.30796]
[1722417471117,3.60119,3320.1,3319.4,5.30796]
[1722417472253,3.0,3320.1,3319.5,3.01249]
[1722417472461,3.01172,3320.4,3319.6,3.01234]
[1722417472661,3.01159,3320.5,3319.8,3.01222]
[1722417472841,3.01159,3320.5,3319.7,5.32943146]
[1722417473842,3.0117,3320.4,3319.7,5.32943146]
[1722417474169,3.01179,3320.3,3319.7,2.31714146]
[1722417474366,3.01179,3320.3,3319.7,2.2569]
[1722417475221,3.01168,3320.4,3319.7,5.2692]
[1722417475421,6.855315,3320.7,3319.7,5.2692]
[1722417475726,3.01163,3320.5,3319.8,3.01221]
[1722417476045,3.0,3320.4,3319.8,3.01221]
[1722417476374,3.0,3320.4,3319.9,3.01213]
[1722417476532,3.0,3320.6,3319.9,3.01213]
[1722417476867,3.0,3320.6,3320.0,2.4014]
[1722417477393,6.0115,3320.6,3320.0,2.4014]
[1722417477555,6.913795,3320.6,3320.0,2.4014]
[1722417477750,3.902295,3320.6,3320.0,2.4014]
[1722417477956,3.0,3320.6,3320.0,2.4014]
[1722417478469,3.0,3320.7,3320.0,2.4014]
[1722417478985,6.01146,3320.7,3320.0,2.4014]
[1722417479279,3.01159,3320.5,3320.0,2.4014]
[1722417481661,7.12446,3320.7,3320.0,2.4014]
[1722417481988,3.01161,3320.5,3320.0,2.4014]
[1722417483873,3.01151,3320.6,3320.0,2.4014]
[1722417486505,6.01143,3320.7,3320.0,2.4014]
[1722417487009,3.0115,3320.6,3320.1,35.0]
[1722417487210,3.612643,3320.6,3320.1,35.0]
[1722417487527,3.0115,3320.6,3320.1,35.0]
[1722417490289,3.0,3320.7,3320.1,35.0]
[1722417490676,3.0,3320.7,3320.0,2.4014]
[1722417491183,3.0,3320.7,3320.0,37.4014]
[1722417491617,3.01151,3320.6,3320.0,37.4014]
[1722417493759,6.01143,3320.7,3320.0,37.4014]
[1722417493959,6.01143,3320.7,3320.1,2.2566]
[1722417494166,6.01143,3320.7,3320.1,2.31683308]
[1722417494331,6.01143,3320.7,3320.1,2.2566]
[1722417495276,3.0,3320.7,3320.1,5.30561288]
[1722417495430,3.0,3320.8,3320.1,5.30561288]
[1722417495636,3.0,3320.9,3320.1,5.30561288]
[1722417495835,3.01132,3320.8,3320.2,2.3934]
[1722417496044,3.0,3320.7,3320.2,2.3934]
[1722417501460,2.4922,3321.7,3320.5,1.113]
[1722417501801,3.01091,3321.3,3320.9,2.468]
[1722417501948,3.01069,3321.5,3321.0,35.0]
[1722417502352,3.01082,3321.4,3321.0,35.0]
[1722417503178,3.0,3321.3,3321.0,35.0]
[1722417503388,3.0,3321.5,3321.0,35.0]
[1722417503865,3.01068,3321.6,3321.0,35.0]
[1722417504953,4.12352,3321.7,3321.0,38.04901288]
[1722417505418,3.01052,3321.7,3321.1,2.278]
[1722417506050,3.01052,3321.7,3321.2,35.0]
[1722417506273,3.01042,3321.8,3321.1,2.278]
[1722417506274,6.01061,3321.6,3321.1,2.278]
[1722417508297,6.01061,3321.6,3321.1,5.32701288]
[1722417508497,3.0,3321.6,3321.1,2.278]
[1722417508802,6.01051,3321.7,3321.1,2.278]
[1722417509307,0.55,3321.6,3321.1,2.278]
[1722417509455,0.55,3321.6,3321.2,0.3391]
[1722417510083,0.55,3321.6,3321.1,2.278]
[1722417510597,3.5606,3321.6,3321.1,2.278]
[1722417510752,4.1237,3321.5,3321.1,2.278]
[1722417510961,3.01087,3321.3,3320.7,2.3475]
[1722417511312,3.01087,3321.3,3320.8,0.23475]
[1722417512001,3.01105,3321.1,3320.7,2.3475]
[1722417512183,4.12387,3321.3,3320.7,2.3475]
[1722417512802,3.01087,3321.3,3320.7,2.3475]
[1722417513296,3.01101,3321.2,3320.7,2.3475]
[1722417513505,4.12385,3321.4,3320.7,2.58225]
[1722417513677,3.56088,3321.3,3320.7,2.58225]
[1722417514678,1.113,3321.0,3320.7,2.58225]
[1722417515611,1.113,3320.9,3320.7,2.58225]
[1722417515971,1.113,3320.9,3320.3,2.2808]
[1722417516166,0.55,3321.3,3320.3,2.2808]
[1722417516167,1.113,3320.5,3320.3,2.2808]
[1722417516668,1.113,3320.7,3320.3,2.2808]
[1722417516864,1.113,3321.0,3320.5,3.01158]
[1722417517096,1.113,3321.0,3320.6,2.259]
[1722417517299,1.113,3321.0,3320.6,5.27049]
[1722417517607,1.113,3321.0,3320.6,2.259]
[1722417517809,1.113,3321.0,3320.6,2.838987]
[1722417519016,1.113,3321.0,3320.6,5.850477]
[1722417519221,1.113,3321.0,3320.6,5.850437]
[1722417519518,1.113,3321.0,3320.7,3.01139]
[1722417519691,1.113,3321.0,3320.7,38.01139]
[1722417519874,1.113,3321.0,3320.8,6.06033288]
[1722417520076,1.113,3321.2,3320.8,6.06033288]
[1722417520319,1.113,3321.2,3320.8,3.01132]
[1722417520483,1.113,3321.2,3320.9,35.0]
[1722417521480,3.0,3321.7,3321.0,2.4971]
[1722417521817,1.113,3321.4,3321.1,3.04901288]
[1722417521974,1.113,3321.4,3321.0,5.50823]
[1722417522178,1.113,3321.4,3321.1,35.0]
[1722417522603,0.55,3321.6,3321.1,35.0]
[1722417522806,1.113,3321.4,3321.1,38.04901288]
[1722417528281,1.113,3321.4,3321.1,41.06002288]
[1722417528496,1.113,3321.4,3321.1,38.04901288]
[1722417533761,1.113,3321.4,3321.2,3.01095]
[1722417534066,1.113,3321.4,3321.1,6.06004288]
[1722417534363,1.113,3321.4,3321.2,35.0]
[1722417542061,1.113,3321.4,3321.2,37.4591]
[1722417542683,1.113,3321.4,3321.2,35.0]
[1722417545888,1.113,3321.4,3320.9,5.47026]
[1722417546082,1.113,3321.2,3321.0,0.6072427]
[1722417546249,1.113,3321.2,3321.1,35.0]
[1722417548785,1.113,3321.5,3321.1,35.0]
[1722417548983,1.113,3321.5,3321.2,8.42993523]
[1722417549307,1.113,3321.5,3321.2,11.44083523]
[1722417549606,1.113,3321.5,3321.3,35.0]
[1722417551496,1.113,3321.5,3321.3,38.01085]
[1722417552080,1.113,3321.5,3321.3,35.0]
[1722417552307,5.4686,3322.1,3321.4,2.4719]
[1722417552660,1.113,3321.7,3321.4,5.5811223]
[1722417552821,1.113,3321.7,3321.4,5.52091288]
[1722417553008,1.113,3321.5,3321.3,35.0]
[1722417554452,3.01077,3321.4,3320.9,2.4796]
[1722417554653,1.113,3321.0,3320.9,2.4796]
[1722417554958,1.113,3321.0,3320.9,38.028697]
[1722417555456,5.2691,3321.7,3320.9,41.039927]
[1722417555457,1.113,3321.2,3320.9,41.039927]
[1722417555612,1.113,3321.2,3320.9,38.028697]
[1722417555813,1.113,3321.2,3321.0,3.04901288]
[1722417558526,1.113,3321.2,3320.9,3.028697]
[1722417558728,1.113,3321.2,3321.0,35.0]
[1722417562176,1.113,3321.4,3321.0,35.0]
[1722417562376,1.113,3321.4,3321.1,0.06021555]
[1722417562579,1.113,3321.4,3321.2,3.04901288]
[1722417562784,1.113,3321.4,3321.1,0.06021555]
[1722417563078,6.01051,3321.7,3321.2,37.3695]
[1722417563079,1.113,3321.6,3321.2,37.3695]
[1722417563656,3.0,3321.7,3321.2,37.3695]
[1722417563657,4.113,3321.8,3321.2,37.3695]
[1722417563884,3.0,3321.8,3321.3,3.04901288]
[1722417564177,1.113,3321.7,3321.3,3.10922432]
[1722417566772,1.113,3321.7,3321.3,3.07107144]
[1722417566948,1.113,3321.7,3321.4,35.0]
[1722417567555,3.0,3322.0,3321.5,0.06020992]
[1722417567760,1.113,3321.9,3321.7,2.36]
[1722417568184,1.113,3321.9,3321.7,37.36]
[1722417569100,3.0,3322.3,3321.7,37.36]
[1722417569259,1.113,3322.0,3321.8,3.10921417]
[1722417569448,3.0,3322.4,3321.8,3.04901288]
[1722417569695,3.0,3322.5,3321.8,3.10921543]
[1722417569994,1.113,3322.1,3321.9,2.55435976]
[1722417571069,0.05230131,3322.6,3321.9,2.55435976]
[1722417571269,1.113,3322.4,3321.9,5.62480927]
[1722417571521,1.113,3322.2,3321.9,0.06019951]
[1722417571721,1.113,3322.2,3322.0,35.0]
[1722417572009,1.113,3322.2,3322.1,3.04901288]
[1722417572742,1.113,3322.2,3322.1,2.4771]
[1722417573017,1.113,3322.2,3322.1,37.4771]
[1722417573323,6.00962,3322.7,3322.1,37.4771]
[1722417573505,1.113,3322.3,3322.1,37.4771]
[1722417574779,3.5597,3322.6,3322.1,37.4771]
[1722417574981,1.113,3322.2,3322.1,37.4771]
[1722417575182,1.113,3322.2,3322.1,40.52611288]
[1722417576316,3.0,3322.7,3322.1,43.53624288]
[1722417576518,3.0,3322.8,3322.2,0.06019362]
[1722417576715,1.113,3322.5,3322.2,6.1192565]
[1722417577107,1.113,3322.5,3322.2,3.04901288]
[1722417577314,1.113,3322.5,3322.3,0.65273668]
[1722417579234,4.1228,3322.5,3322.3,0.65273668]
[1722417579444,4.1228,3322.5,3322.1,35.0]
[1722417579744,1.113,3322.3,3322.1,35.0]
[1722417579956,5.4443,3322.9,3322.2,3.04901288]
[1722417579957,1.113,3322.4,3322.2,3.04901288]
[1722417580153,1.113,3322.4,3322.2,3.1092078]
[1722417581305,1.113,3322.4,3322.2,3.04901288]
[1722417581534,1.113,3322.4,3322.3,3.04901288]
[1722417582951,1.113,3322.4,3322.2,3.00999]
[1722417583119,1.113,3322.4,3322.3,35.0]
[1722417585554,1.113,3322.6,3322.3,37.4689]
[1722417586055,1.113,3322.6,3322.3,40.47885]
[1722417586288,1.113,3322.6,3322.4,3.04901288]
[1722417589437,1.113,3322.6,3322.3,2.4689]
[1722417589773,1.113,3322.6,3322.4,35.0]
[1722417598423,3.0,3323.0,3322.4,35.0]
[1722417598587,1.113,3322.6,3322.4,38.00986]
[1722417598787,1.113,3322.6,3322.4,41.05887288]
[1722417599101,1.113,3322.6,3322.4,38.04901288]
[1722417599297,3.0,3323.0,3322.4,41.05887288]
[1722417599501,1.113,3322.7,3322.5,3.04901288]
[1722417599934,1.113,3322.7,3322.3,2.4689]
[1722417600087,1.113,3322.7,3322.4,35.06019107]
[1722417602432,1.113,3322.7,3322.4,38.07001107]
[1722417602801,1.113,3322.7,3322.5,3.00976]
[1722417602990,1.113,3322.9,3322.6,3.00969]
[1722417603191,1.113,3322.9,3322.6,3.310666]
[1722417603385,1.113,3322.9,3322.7,35.0]
[1722417606826,7.48,3323.3,3322.7,35.0]
[1722417607047,1.113,3322.9,3322.8,3.04901288]
[1722417607231,1.113,3322.9,3322.8,3.1091991]
[1722417607437,1.113,3322.9,3322.7,2.51448428]
[1722417607640,1.113,3322.9,3322.8,35.0]
[1722417608143,1.04231092,3322.9,3322.8,35.0]
[1722417610770,1.0423252,3323.0,3322.8,35.0]
[1722417610972,1.0423252,3323.0,3322.9,3.04901288]
[1722417611333,1.0423252,3323.0,3322.7,5.46383]
[1722417611573,1.0423252,3323.0,3322.8,35.0]
[1722417611756,1.113,3323.0,3322.8,35.0]
[1722417611930,1.0423252,3322.9,3322.8,35.0]
[1722417613766,1.04232385,3322.9,3322.8,35.0]
[1722417614268,1.113,3323.0,3322.8,35.0]
[1722417614474,1.04232718,3322.9,3322.8,35.0]
[1722417615347,1.04232718,3322.9,3322.8,38.04901288]
[1722417616134,1.04232718,3322.9,3322.6,0.300976]
[1722417616333,1.04232718,3322.8,3322.7,0.06018798]
[1722417616539,1.113,3322.9,3322.7,0.06018798]
[1722417616854,1.04232718,3322.8,3322.7,0.06018798]
[1722417617054,1.04232718,3322.8,3322.7,0.5433388]
[1722417617363,1.113,3322.9,3322.6,2.3635]
[1722417617566,1.04238075,3322.8,3322.6,2.3635]
[1722417617771,1.04238075,3322.7,3322.6,2.3635]
[1722417618488,2.15538075,3322.7,3322.3,2.4434]
[1722417618642,1.04238075,3322.6,3322.4,1.292337]
[1722417618978,1.113,3322.7,3322.4,4.302157]
[1722417619185,1.113,3322.7,3322.5,0.6745557]
[1722417619387,1.04237915,3322.6,3322.5,0.6745557]
[1722417619541,1.113,3322.7,3322.5,0.6745557]
[1722417620391,1.04237886,3322.6,3322.5,0.6745557]
[1722417620723,1.113,3322.7,3322.5,0.6745557]
[1722417620867,1.113,3322.7,3322.6,0.49767127]
[1722417621063,1.04237387,3322.7,3322.6,0.49767127]
[1722417621268,1.04237387,3322.7,3322.6,3.50736127]
[1722417621617,1.113,3323.0,3322.7,2.3632]
[1722417621782,1.04231607,3322.9,3322.7,3.08391626]
[1722417621980,1.04231607,3322.8,3322.7,3.02373053]
[1722417623076,1.04231607,3322.8,3322.7,3.08391787]
[1722417623285,1.04231607,3322.8,3322.7,3.02373053]
[1722417624006,1.113,3323.0,3322.7,41.03333053]
[1722417624305,1.113,3323.0,3322.8,3.04901288]
[1722417624306,1.04230577,3322.9,3322.8,3.04901288]
[1722417627284,3.5349,3323.0,3322.7,35.0]
[1722417627482,1.113,3322.8,3322.7,35.0]
[1722417627712,2.15531995,3322.8,3322.7,35.0]
[1722417628391,5.16482995,3322.8,3322.7,35.0]
[1722417629697,2.15531995,3322.8,3322.7,35.0]
[1722417630541,5.16493876,3322.8,3322.7,35.0]
[1722417631031,2.15542876,3322.8,3322.7,35.0]
[1722417631426,5.16493876,3322.8,3322.7,35.0]
[1722417632633,2.15542876,3322.8,3322.7,35.0]
[1722417634051,2.15541884,3322.8,3322.7,35.0]
[1722417634953,5.16492884,3322.8,3322.7,35.0]
[1722417636141,2.15541884,3322.8,3322.7,35.0]
[1722417637264,5.16493445,3322.8,3322.7,35.0]
[1722417640429,4.12251,3322.8,3322.7,35.0]
[1722417640744,5.16493553,3322.8,3322.7,35.0]
[1722417640943,8.17444553,3322.8,3322.7,35.0]
[1722417643921,8.17448045,3322.8,3322.7,35.0]
[1722417647311,8.17448449,3322.8,3322.7,35.0]
[1722417648723,5.16497449,3322.8,3322.7,35.0]
[1722417649381,8.17448449,3322.8,3322.7,35.0]
[1722417650655,8.17448743,3322.8,3322.7,35.0]
[1722417651599,15.53467117,3322.8,3322.7,35.0]
[1722417651912,3.01029,3322.0,3321.6,2.2695]
[1722417652106,1.04262339,3321.9,3321.7,4.0]
[1722417652305,3.01029,3322.0,3321.8,35.62695]
[1722417652501,4.0529464,3321.9,3321.8,35.62695]
[1722417652745,4.0529464,3321.9,3321.8,35.0]
[1722417654047,4.05303782,3321.9,3321.8,35.0]
[1722417656023,1.04271782,3321.9,3321.8,35.0]
[1722417656356,2.15571782,3321.9,3321.8,35.0]
[1722417657248,1.113,3321.9,3321.8,35.0]
[1722417657420,2.15569214,3321.9,3321.8,35.0]
[1722417657835,5.16601214,3321.9,3321.8,35.0]
[1722417660616,5.16602565,3321.9,3321.8,35.0]
[1722417660935,2.15570565,3321.9,3321.8,40.53621288]
[1722417663828,1.113,3321.9,3321.8,40.53621288]
[1722417664014,2.15569501,3321.9,3321.8,40.53621288]
[1722417667449,2.15568695,3321.9,3321.8,40.53621288]
[1722417667846,1.53915554,3321.9,3321.8,40.53621288]
[1722417669295,0.49646859,3321.9,3321.8,40.53621288]
[1722417669892,1.53914857,3321.9,3321.8,40.53621288]
[1722417670591,0.49646859,3321.9,3321.8,40.53621288]
[1722417670792,0.49646859,3321.9,3321.8,38.04901288]
[1722417671197,1.53912646,3321.9,3321.8,38.04901288]
[1722417672502,1.53912646,3321.9,3321.8,35.0]
[1722417673876,1.53915175,3321.9,3321.8,35.0]
[1722417674078,1.53915178,3321.9,3321.8,35.0]
[1722417677419,1.53912889,3321.9,3321.8,35.0]
[1722417678024,1.53913936,3321.9,3321.8,35.0]
[1722417678523,1.53913936,3321.9,3321.8,38.04901288]
[1722417681082,0.49646859,3321.9,3321.8,38.04901288]
[1722417681521,1.04264919,3321.9,3321.8,40.51181288]
[1722417681737,1.113,3322.5,3322.1,2.4628]
[1722417682036,1.04252852,3322.4,3322.2,0.60749749]
[1722417682202,1.113,3322.5,3322.1,2.52299544]
[1722417682203,1.04252852,3322.3,3322.1,2.52299544]
[1722417682402,1.04252852,3322.2,3322.1,2.52299544]
[1722417682695,1.113,3322.5,3322.1,6.08645698]
[1722417682930,1.04240896,3322.4,3322.1,6.08645698]
[1722417683088,1.04240896,3322.3,3322.1,6.08645698]
[1722417683289,1.113,3322.5,3322.2,0.6086457]
[1722417683628,1.04247127,3322.4,3322.2,0.6086457]
[1722417683795,1.04247127,3322.3,3322.2,0.6086457]
[1722417683998,1.113,3322.5,3322.2,3.6186957]
[1722417684216,1.113,3322.5,3322.3,2.41119175]
[1722417684440,3.0,3322.8,3322.3,2.41119175]
[1722417684441,7.48,3323.2,3322.4,0.60298875]
[1722417684738,1.113,3322.9,3322.6,2.351]
[1722417684943,1.113,3322.9,3322.6,2.41118669]
[1722417685156,1.113,3322.9,3322.7,3.04901288]
[1722417685302,7.48,3323.6,3322.8,0.06018495]
[1722417685494,1.113,3323.1,3322.9,35.0]
[1722417685803,1.113,3323.1,3323.0,0.0601805]
[1722417686003,1.113,3323.1,3323.0,3.04901288]
[1722417686202,1.113,3323.1,3322.9,0.0601807]
[1722417686436,1.113,3323.1,3323.0,35.0]
[1722417687313,7.62929229,3323.6,3323.0,35.0]
[1722417687314,7.48,3323.6,3323.0,35.0]
[1722417687513,1.113,3323.2,3323.0,35.0]
[1722417687714,1.113,3323.2,3323.1,3.04901288]
[1722417688301,7.48,3323.6,3323.1,5.48251288]
[1722417688497,1.113,3323.5,3323.1,5.48251288]
[1722417688952,7.48,3323.6,3323.1,5.48251288]
[1722417689129,1.113,3323.5,3323.1,5.48251288]
[1722417689334,1.113,3323.5,3323.2,3.04901288]
[1722417690000,1.113,3323.5,3323.3,0.06017475]
[1722417691240,1.113,3323.5,3323.4,35.0]
[1722417691542,1.113,3323.7,3323.4,35.0]
[1722417691743,1.113,3323.7,3323.5,3.10918393]
[1722417695015,1.113,3323.7,3323.1,5.44273]
[1722417695016,1.113,3323.7,3323.2,0.06017066]
[1722417695215,1.113,3323.7,3323.3,35.0]
[1722417695415,1.113,3323.7,3323.4,0.06017063]
[1722417695836,1.113,3323.7,3323.5,2.421]
[1722417696056,10.48832,3324.2,3323.6,35.24811706]
[1722417696057,7.48,3324.2,3323.6,35.24811706]
[1722417696364,3.00822,3324.3,3323.6,35.24811706]
[1722417696365,3.0,3324.1,3323.6,35.24811706]
[1722417696913,1.113,3323.7,3323.6,35.24811706]
[1722417700661,1.113,3323.8,3323.7,2.4107]
[1722417700870,5.44503433,3325.0,3323.7,2.4107]
[1722417701075,1.113,3324.1,3323.8,3.00852]
[1722417701232,1.113,3323.9,3323.8,3.00852]
[1722417701419,1.113,3323.9,3323.8,38.00852]
[1722417701848,1.113,3323.9,3323.8,35.0]
[1722417708345,5.40228,3324.5,3323.8,35.0]
[1722417708547,2.3943,3324.5,3323.9,3.04901288]
[1722417708778,1.113,3324.0,3323.9,3.04901288]
[1722417710948,3.00799,3324.5,3323.9,3.04901288]
[1722417711272,1.113,3324.1,3324.0,2.4721]
[1722417713790,1.113,3324.1,3323.9,3.04901288]
[1722417718021,1.113,3324.1,3323.9,3.10917467]
[1722417718892,3.0,3324.6,3324.1,2.2878]
[1722417719103,1.113,3324.4,3324.2,0.06015645]
[1722417719309,1.113,3324.4,3324.3,0.23479565]
[1722417719511,5.3995,3325.0,3324.3,0.23479565]
[1722417719512,1.113,3324.6,3324.3,0.23479565]
[1722417719785,1.113,3324.6,3324.4,35.0]
[1722417720090,1.113,3324.6,3324.5,3.10916555]
[1722417720294,1.113,3324.6,3324.5,3.04901288]
[1722417720482,1.113,3324.6,3324.3,0.23479565]
[1722417720677,1.113,3324.4,3324.3,0.23479565]
[1722417721227,1.113,3324.4,3324.3,35.23479565]
[1722417721385,1.113,3324.4,3324.3,38.24294565]
[1722417721575,2.3995,3325.0,3324.4,3.00805]
[1722417721789,1.113,3324.6,3324.4,3.04901288]
[1722417722821,1.113,3324.6,3324.5,0.06015015]
[1722417723021,1.113,3324.6,3324.4,3.04901288]
[1722417724932,1.113,3324.6,3324.3,0.23479565]
[1722417725141,1.113,3324.6,3324.5,35.0]
[1722417728309,2.4605,3324.8,3324.5,35.0]
[1722417728541,1.113,3324.6,3324.5,35.0]
[1722417730522,1.113,3324.6,3324.3,0.23479565]
[1722417730819,1.113,3324.4,3324.0,3.00842]
[1722417731044,1.113,3324.4,3324.3,35.0]
[1722417734715,3.4386,3324.4,3324.3,35.0]
[1722417736212,1.113,3324.4,3324.3,35.0]
[1722417737342,1.113,3324.4,3324.3,38.04901288]
[1722417740422,1.113,3324.4,3324.3,35.0]
[1722417740812,4.12106,3324.4,3324.3,35.0]
[1722417744243,6.58966,3324.4,3324.3,35.0]
[1722417748584,9.59772,3324.4,3324.3,35.0]
[1722417752082,2.474,3324.3,3322.8,2.4804]
[1722417752381,2.474,3324.3,3323.3,2.4804]
[1722417752382,1.113,3323.6,3323.3,2.4804]
[1722417752550,1.113,3323.6,3323.4,35.06016861]
[1722417757272,1.113,3323.6,3323.4,35.0]
[1722417757474,1.113,3323.6,3323.5,3.04901288]
[1722417757975,1.113,3323.6,3323.1,2.2771]
[1722417758175,1.113,3323.3,3323.2,35.0]
[1722417765582,6.01711,3323.9,3323.2,35.0]
[1722417765751,3.00854,3323.9,3323.3,3.04901288]
[1722417766078,3.0,3324.2,3323.4,2.36936989]
[1722417766079,1.113,3323.5,3323.4,2.36936989]
[1722417766449,1.113,3323.5,3323.4,37.36936989]
[1722417768159,1.113,3323.5,3323.4,35.0]
[1722417768382,1.113,3323.5,3323.4,38.04901288]
[1722417771013,1.113,3323.5,3323.4,3.04901288]
[1722417771315,1.113,3323.5,3323.2,0.06016993]
[1722417771617,1.113,3323.5,3323.3,35.0]
[1722417771776,1.113,3323.5,3323.4,0.06016992]
[1722417773118,1.113,3323.5,3323.2,0.06016994]
[1722417773291,1.113,3323.5,3323.4,35.0]
[1722417777220,3.0,3324.0,3323.4,40.33488]
[1722417777444,1.113,3323.6,3323.4,35.0]
[1722417777627,1.113,3323.6,3323.4,3.04901288]
[1722417777837,1.113,3323.6,3323.3,0.54243499]
[1722417778033,1.113,3323.4,3323.3,35.0]
[1722417778256,1.113,3323.4,3322.9,3.40024]
[1722417778523,5.32356,3323.8,3323.0,4.0]
[1722417778719,5.32356,3323.8,3323.1,35.0]
[1722417779054,3.0087,3323.7,3323.1,35.0]
[1722417780271,5.32356,3323.8,3323.1,35.0]
[1722417780438,5.32356,3323.8,3323.2,3.04901288]
[1722417780623,1.113,3323.3,3323.2,3.04901288]
[1722417780825,1.113,3323.3,3323.0,0.340024]
[1722417781128,1.113,3323.1,3323.0,0.340024]
[1722417781636,1.113,3323.1,3323.0,35.340024]
[1722417781834,1.113,3323.1,3322.9,0.99504]
[1722417782042,3.00942,3322.9,3322.2,7.47]
[1722417782270,3.00942,3322.9,3322.0,2.2655]
[1722417782271,1.113,3322.4,3322.0,2.2655]
[1722417782579,1.113,3322.4,3321.5,7.47]
[1722417782580,3.00988,3322.4,3322.1,0.22655]
[1722417782758,3.01005,3322.2,3321.5,7.47]
[1722417783088,3.01005,3322.2,3321.6,35.747]
[1722417783629,1.113,3321.7,3321.6,35.747]
[1722417785246,3.00979,3322.5,3321.6,35.747]
[1722417785425,7.48,3322.6,3321.6,35.747]
[1722417785426,1.113,3321.7,3321.6,35.747]
[1722417785625,1.113,3321.9,3321.7,3.01049]
[1722417785875,1.113,3321.9,3321.7,6.05950288]
[1722417786369,3.0,3322.5,3321.7,3.01049]
[1722417786577,1.113,3322.1,3321.9,3.01026]
[1722417786728,7.48,3322.6,3322.4,3.00985]